bitfinex/quotes_SOLUSD_20241008
["timestamp","ask_amount","ask_price","bid_price","bid_amount"]
[1728359155557,6.8928,145.08,145.02,17.2386]
[1728359155760,24.027864,145.1,145.02,24.134]
[1728359156382,6.8941,145.06,145.02,17.2386]
[1728359156583,6.8942,145.05,145.02,17.2386]
[1728359157462,6.8938,145.06,145.02,17.2386]
[1728359159652,6.8938,145.06,145.02,24.1341]
[1728359161076,17.231,145.09,145.02,17.2386]
[1728359161255,6.8933,145.07,145.03,8.27389765]
[1728359161668,6.8933,145.07,145.03,6.8951]
[1728359162273,6.8933,145.07,145.02,17.2386]
[1728359162470,6.8933,145.07,145.02,24.1338]
[1728359163276,6.8937,145.06,145.02,24.1338]
[1728359163500,6.8945,145.05,145.01,23.2983]
[1728359166259,6.8945,145.05,145.01,16.4024]
[1728359168891,24.027864,145.08,144.99,24.1384]
[1728359169091,6.8952,145.03,144.99,24.1384]
[1728359169589,6.8947,145.04,144.99,24.1384]
[1728359173181,6.8947,145.04,145.0,8.27535315]
[1728359175493,6.8942,145.05,145.01,6.896]
[1728359175705,6.8933,145.07,145.03,6.8951]
[1728359176977,6.8933,145.07,145.04,1.37881317]
[1728359177402,6.8933,145.07,145.03,6.8951]
[1728359178805,6.8933,145.07,145.04,1.37876952]
[1728359180088,6.8933,145.07,145.03,6.8951]
[1728359181202,6.8933,145.07,145.04,1.37878214]
[1728359181582,6.8937,145.06,145.02,6.8955]
[1728359184391,6.8937,145.06,145.03,1.37878417]
[1728359185206,17.231,145.09,145.03,1.37878417]
[1728359185375,6.8933,145.07,145.03,1.37878417]
[1728359185710,6.8933,145.07,145.04,1.37876713]
[1728359188296,16.3825,145.11,145.05,1.37876601]
[1728359189103,16.3825,145.11,145.03,17.2375]
[1728359190094,6.8924,145.09,145.05,6.894]
[1728359197506,6.8924,145.09,145.06,1.37853673]
[1728359197709,6.8924,145.09,145.05,6.894]
[1728359199514,6.8924,145.09,145.06,1.378537]
[1728359200008,6.8914,145.11,145.06,8.271837]
[1728359200209,32.5829,145.15,145.06,1.378537]
[1728359200210,6.8909,145.12,145.06,1.378537]
[1728359200514,6.8909,145.12,145.08,6.8927]
[1728359200700,6.8909,145.12,145.09,1.37823494]
[1728359201098,6.8909,145.12,145.08,6.8927]
[1728359201300,6.8909,145.12,145.08,1.37820543]
[1728359202391,6.8914,145.11,145.08,1.37820543]
[1728359204919,6.8914,145.11,145.07,24.1256]
[1728359205219,6.8923,145.09,145.05,22.4604]
[1728359205519,0.25098,145.14,145.05,22.4604]
[1728359205520,0.25098,145.14,145.05,15.5663]
[1728359205814,6.8919,145.1,145.06,6.8936]
[1728359215919,24.027864,145.14,145.01,16.1303]
[1728359216101,0.25098,145.1,145.01,33.3698]
[1728359216304,6.8928,145.08,145.03,24.1323]
[1728359216737,17.2285,145.11,145.04,8.27293868]
[1728359216924,6.8924,145.09,145.04,8.27293868]
[1728359217619,6.8924,145.09,145.04,1.37863868]
[1728359217809,6.8924,145.09,145.05,6.8941]
[1728359218320,6.8927,145.08,145.04,6.8945]
[1728359220031,6.8935,145.07,145.03,24.1323]
[1728359221108,6.8935,145.07,145.04,1.37871593]
[1728359221817,6.8935,145.07,145.03,24.1323]
[1728359222413,6.8937,145.06,145.03,17.2374]
[1728359222608,6.8942,145.05,145.01,23.0263]
[1728359223226,6.8938,145.06,145.02,1.37883777]
[1728359223428,6.8938,145.06,145.01,23.0263]
[1728359223826,6.8938,145.06,145.02,8.27407414]
[1728359224214,6.8933,145.07,145.03,6.895]
[1728359224414,6.8933,145.07,145.04,1.37874117]
[1728359225654,6.8933,145.07,145.03,6.895]
[1728359225833,6.8928,145.08,145.04,6.8944]
[1728359226424,6.8923,145.09,145.04,6.8944]
[1728359226633,15.1114,145.11,145.02,17.2383]
[1728359226830,6.8932,145.07,145.03,8.27367625]
[1728359227442,6.8929,145.08,145.03,8.27367625]
[1728359229225,6.8924,145.09,145.04,17.2359]
[1728359229419,6.8929,145.08,145.04,24.1304]
[1728359229620,6.8929,145.08,145.05,1.37858103]
[1728359230328,15.1114,145.11,145.05,8.27268103]
[1728359230329,6.8924,145.09,145.05,8.27268103]
[1728359230523,6.8924,145.09,145.05,6.8941]
[1728359230734,6.8924,145.09,145.06,1.37848226]
[1728359231120,6.8924,145.09,145.05,6.8941]
[1728359231320,6.8924,145.09,145.06,1.3784849]
[1728359232318,6.8924,145.09,145.05,6.8941]
[1728359233848,6.8924,145.09,145.06,1.37845751]
[1728359234030,6.8918,145.1,145.06,8.27205751]
[1728359234430,32.80859,145.15,145.06,8.27205751]
[1728359234627,6.8914,145.11,145.06,6.8936]
[1728359240053,6.8918,145.1,145.06,6.8936]
[1728359244838,6.8909,145.12,145.07,1.37834815]
[1728359245050,6.8913,145.11,145.07,6.8931]
[1728359245442,6.8913,145.11,145.08,1.37825852]
[1728359246844,6.8913,145.11,145.07,6.8931]
[1728359247248,6.8913,145.11,145.08,1.3782636]
[1728359248651,6.8913,145.11,145.07,6.8931]
[1728359249742,32.6831,145.15,145.06,33.244]
[1728359249947,6.8904,145.13,145.09,6.8922]
[1728359250638,6.8904,145.13,145.06,33.244]
[1728359250952,6.8904,145.13,145.08,6.8925]
[1728359252862,32.6831,145.15,145.08,6.8925]
[1728359253162,6.8909,145.12,145.08,6.8925]
[1728359253465,32.6831,145.15,145.06,33.244]
[1728359253664,6.8926,145.09,145.06,16.0101]
[1728359254971,6.8919,145.1,145.06,16.0101]
[1728359257041,6.8923,145.09,145.05,13.0862]
[1728359257766,17.2263,145.13,145.03,17.2372]
[1728359257973,0.12549,145.14,145.03,17.2372]
[1728359257974,6.8933,145.07,145.03,24.1321]
[1728359258452,6.8932,145.08,145.03,24.1321]
[1728359259949,6.8932,145.08,145.04,8.27310966]
[1728359264767,6.8932,145.08,145.05,1.37861402]
[1728359264967,6.8932,145.08,145.04,6.8945]
[1728359265457,6.8922,145.09,145.05,8.272515]
[1728359265668,6.8923,145.09,145.05,24.1291]
[1728359267069,49.906,145.15,145.04,6.8944]
[1728359267273,6.893,145.08,145.04,6.8944]
[1728359269091,6.893,145.08,145.04,8.27302137]
[1728359269271,17.2274,145.12,145.04,1.37862137]
[1728359269454,6.8922,145.09,145.05,6.8937]
[1728359270875,6.8919,145.1,145.06,6.8936]
[1728359273053,6.8926,145.09,145.05,6.894]
[1728359273254,6.8921,145.1,145.06,8.27213433]
[1728359273457,6.8921,145.1,145.06,6.8936]
[1728359276073,6.8921,145.1,145.04,17.2362]
[1728359276074,17.2263,145.13,145.04,0.12549]
[1728359276259,6.8914,145.11,145.07,6.8931]
[1728359276958,15.4588,145.15,145.06,17.2339]
[1728359277160,6.8918,145.1,145.06,24.1275]
[1728359277779,6.8918,145.1,145.07,1.37841315]
[1728359279359,6.8918,145.1,145.06,24.1275]
[1728359280481,6.8918,145.1,145.07,1.37834942]
[1728359282081,6.8918,145.1,145.06,24.1275]
[1728359283284,6.8918,145.1,145.07,1.37840292]
[1728359283683,17.2251,145.14,145.07,1.37840292]
[1728359283864,15.4588,145.15,145.07,1.37840292]
[1728359283865,6.8907,145.13,145.08,17.2314]
[1728359284070,6.8907,145.13,145.09,1.37816082]
[1728359284786,6.8907,145.13,145.09,8.27036082]
[1728359285670,6.8907,145.13,145.09,6.8922]
[1728359286567,15.4588,145.15,145.1,8.26975685]
[1728359286568,6.8899,145.14,145.1,8.26975685]
[1728359287578,6.8899,145.14,145.09,6.8921]
[1728359288083,6.8899,145.14,145.1,1.37800809]
[1728359288578,6.8899,145.14,145.1,8.26960809]
[1728359289076,6.8899,145.14,145.09,6.8921]
[1728359289781,6.8899,145.14,145.1,1.37802778]
[1728359290179,6.8899,145.14,145.09,6.8921]
[1728359290686,6.8899,145.14,145.1,8.26956947]
[1728359294787,6.8899,145.14,145.1,6.8916]
[1728359295167,6.8899,145.14,145.11,1.37794829]
[1728359298892,6.8899,145.14,145.1,6.8916]
[1728359299683,17.2221,145.17,145.08,17.2314]
[1728359299892,6.8894,145.15,145.11,6.8912]
[1728359300075,6.8894,145.15,145.12,1.3778219]
[1728359302493,6.8891,145.16,145.12,1.3778219]
[1728359305101,6.8895,145.15,145.12,1.3778219]
[1728359305400,6.8895,145.15,145.11,6.8912]
[1728359307379,6.8895,145.15,145.12,1.37786984]
[1728359307579,6.8895,145.15,145.11,6.8912]
[1728359307781,6.8895,145.15,145.12,1.37790246]
[1728359309704,6.8895,145.15,145.11,6.8912]
[1728359311098,16.2611223,145.19,145.1,33.1368]
[1728359311306,6.8899,145.14,145.1,40.0284]
[1728359315298,6.8899,145.14,145.1,17.2285]
[1728359317595,6.8899,145.14,145.1,24.1201]
[1728359320209,6.8899,145.14,145.1,17.2285]
[1728359320904,17.2202,145.18,145.1,17.2285]
[1728359321091,6.8903,145.13,145.1,17.2285]
[1728359330209,6.8903,145.13,145.11,1.37807089]
[1728359330515,6.8903,145.13,145.1,17.2285]
[1728359331795,6.8899,145.14,145.1,24.1201]
[1728359332598,6.8895,145.15,145.1,24.1201]
[1728359335917,6.8895,145.15,145.1,25.49809024]
[1728359336105,6.8895,145.15,145.1,24.1201]
[1728359347441,17.2202,145.18,145.1,24.1201]
[1728359347722,6.8899,145.14,145.1,24.1201]
[1728359354238,17.2226,145.16,145.07,32.5538]
[1728359354447,17.2226,145.16,145.06,13.46830815]
[1728359354448,6.8925,145.09,145.06,7.16610815]
[1728359354617,6.8925,145.09,145.05,6.894]
[1728359355542,6.8927,145.08,145.04,24.1302]
[1728359355719,6.8929,145.08,145.04,24.1302]
[1728359355921,6.8929,145.08,145.04,17.2357]
[1728359356617,6.8929,145.08,145.05,1.37865034]
[1728359356824,0.12549,145.14,145.05,1.37865034]
[1728359356825,23.902374,145.14,145.05,1.37865034]
[1728359357135,6.8918,145.1,145.06,6.8936]
[1728359358712,6.8923,145.09,145.04,17.2357]
[1728359359108,6.8923,145.09,145.04,24.13]
[1728359359352,6.8923,145.09,145.05,6.8941]
[1728359359838,6.8923,145.09,145.04,24.1301]
[1728359360341,6.8923,145.09,145.05,1.37862385]
[1728359360723,6.8923,145.09,145.04,24.1301]
[1728359364442,6.8942,145.05,145.01,24.1355]
[1728359364624,24.027864,145.08,145.01,17.2396]
[1728359364940,6.8947,145.04,145.01,17.2396]
[1728359365348,6.8947,145.04,144.99,22.5679]
[1728359366541,23.776884,145.08,144.99,6.8969]
[1728359366542,16.24058,145.07,144.99,6.8969]
[1728359366728,6.8952,145.03,144.99,6.8969]
[1728359369930,0.25098,145.05,144.98,17.243]
[1728359370114,6.8961,145.01,144.98,17.243]
[1728359371742,0.25098,145.05,144.98,18.6222914]
[1728359371949,6.8956,145.02,144.98,18.6222914]
[1728359373845,6.8956,145.02,144.98,17.243]
[1728359374932,6.8956,145.02,144.98,25.51959046]
[1728359375249,6.4985,145.06,144.99,6.8968]
[1728359375422,6.8947,145.04,144.99,6.8968]
[1728359377745,6.8952,145.03,144.98,17.243]
[1728359377923,6.8952,145.03,144.98,24.1403]
[1728359378325,6.8952,145.03,144.99,1.3791878]
[1728359378625,6.8952,145.03,144.98,24.1403]
[1728359385328,6.8952,145.03,144.99,8.27608451]
[1728359385862,6.8952,145.03,144.99,6.8969]
[1728359387257,6.8952,145.03,144.99,8.276033]
[1728359387751,6.8952,145.03,144.99,6.8969]
[1728359389254,6.8952,145.03,145.0,1.37911935]
[1728359391362,6.8952,145.03,144.99,6.8969]
[1728359391545,6.8956,145.02,144.98,24.1403]
[1728359391734,6.8961,145.01,144.98,17.243]
[1728359391942,6.8961,145.01,144.97,6.8978]
[1728359392638,6.8965,145.0,144.96,6.8983]
[1728359394044,6.8971,144.99,144.95,39.5295]
[1728359394353,6.8971,144.99,144.95,46.4283]
[1728359394545,6.8971,144.99,144.96,1.3795081]
[1728359396036,17.2382,145.03,144.96,1.3795081]
[1728359396361,6.8964,145.01,144.96,8.2777081]
[1728359396852,6.8966,145.0,144.96,6.8982]
[1728359397160,6.8966,145.0,144.97,1.37942081]
[1728359397562,6.8966,145.0,144.95,46.4282]
[1728359397954,6.8972,144.99,144.95,39.8162]
[1728359398158,6.8972,144.99,144.95,24.1452]
[1728359400745,6.8979,144.98,144.93,6.8997]
[1728359401064,0.12549,145.02,144.93,6.8997]
[1728359401065,6.898,144.97,144.93,6.8997]
[1728359401267,6.898,144.97,144.94,1.37963883]
[1728359401771,17.2405,145.01,144.94,1.37963883]
[1728359401943,6.8976,144.98,144.94,1.37963883]
[1728359402154,17.2405,145.01,144.94,18.62743883]
[1728359402155,6.8964,145.01,144.94,18.62743883]
[1728359402836,6.8964,145.01,144.97,6.8979]
[1728359403049,6.8964,145.01,144.96,6.8983]
[1728359403249,6.8964,145.01,144.97,1.379416]
[1728359403661,6.8966,145.0,144.97,1.379416]
[1728359404939,6.4985,145.06,144.97,1.379416]
[1728359405262,6.4985,145.06,144.98,6.8974]
[1728359405263,6.8956,145.02,144.98,6.8974]
[1728359405563,6.8956,145.02,144.99,1.37924658]
[1728359406974,6.8956,145.02,144.98,6.8974]
[1728359407561,6.8956,145.02,144.97,6.8978]
[1728359408850,23.0809,145.06,144.96,17.2457]
[1728359408851,17.48708,145.05,144.96,17.2457]
[1728359409171,6.897,144.99,144.96,17.2457]
[1728359409352,6.897,144.99,144.96,18.62512216]
[1728359409552,6.8966,145.0,144.96,18.62512216]
[1728359411690,6.8966,145.0,144.96,17.2457]
[1728359411970,6.8971,144.99,144.94,6.8993]
[1728359412155,6.8965,145.0,144.96,6.8984]
[1728359412347,6.8965,145.0,144.97,1.37936436]
[1728359412750,6.8965,145.0,144.96,6.8984]
[1728359413394,6.8965,145.0,144.97,1.37941351]
[1728359414169,17.2388,145.03,144.97,1.37941351]
[1728359414377,6.896,145.02,144.97,8.27721351]
[1728359414561,6.896,145.02,144.97,6.8978]
[1728359414877,6.8963,145.01,144.98,1.37928868]
[1728359415475,6.8963,145.01,144.97,6.8978]
[1728359415777,6.8963,145.01,144.98,1.37929698]
[1728359415980,6.8959,145.02,144.98,1.37929698]
[1728359416956,6.8959,145.02,144.98,8.27679698]
[1728359418475,6.8959,145.02,144.98,6.8975]
[1728359420083,6.8959,145.02,144.99,1.37919517]
[1728359420682,6.8959,145.02,144.98,6.8975]
[1728359421576,6.8959,145.02,144.97,17.2446]
[1728359421577,6.8959,145.02,144.97,24.1424]
[1728359423363,6.8966,145.0,144.97,17.2446]
[1728359427467,6.8966,145.0,144.96,6.8984]
[1728359427978,6.8966,145.0,144.95,13.3381]
[1728359428875,6.8971,144.99,144.95,13.3381]
[1728359429283,17.2368,145.04,144.96,18.62482585]
[1728359429495,6.8961,145.01,144.97,6.8978]
[1728359429670,6.8961,145.01,144.98,1.37922486]
[1728359430079,6.8961,145.01,144.97,6.8978]
[1728359430690,6.8961,145.01,144.98,1.37922492]
[1728359431197,6.8956,145.02,144.98,8.27672492]
[1728359431780,6.8956,145.02,144.99,1.37920239]
[1728359439899,23.0809,145.06,144.99,1.37920239]
[1728359440079,6.8947,145.04,145.0,6.8961]
[1728359440397,6.8947,145.04,145.01,1.37898741]
[1728359444300,6.8943,145.05,145.01,1.37898741]
[1728359445205,6.8943,145.05,145.01,8.27498741]
[1728359448211,6.8943,145.05,145.01,1.37898741]
[1728359449207,39.7171,145.1,145.01,1.37898741]
[1728359449500,6.8933,145.07,145.02,6.8951]
[1728359449706,6.8933,145.07,145.03,1.37874149]
[1728359450003,6.8931,145.08,145.03,8.27344149]
[1728359450827,6.8931,145.08,145.03,6.8947]
[1728359452113,6.8933,145.07,145.03,6.8947]
[1728359454014,6.8933,145.07,145.04,1.37864163]
[1728359454309,6.8933,145.07,145.03,6.8947]
[1728359454621,6.8933,145.07,145.04,1.37864424]
[1728359454813,33.6663,145.1,145.04,1.37864424]
[1728359455114,6.8929,145.08,145.04,1.37864424]
[1728359457908,6.8929,145.08,145.04,8.27304424]
[1728359459018,6.8929,145.08,145.04,6.8944]
[1728359459198,6.8929,145.08,145.05,1.37856507]
[1728359459517,6.8929,145.08,145.04,6.8944]
[1728359460315,6.8929,145.08,145.03,6.895]
[1728359460542,6.8933,145.07,145.03,6.895]
[1728359461819,15.73628,145.1,145.02,17.2384]
[1728359462712,6.8943,145.05,145.02,17.2384]
[1728359463591,15.73628,145.1,145.02,17.2384]
[1728359463791,6.8938,145.06,145.02,17.2384]
[1728359464491,6.8943,145.05,145.02,17.2384]
[1728359467323,6.8947,145.04,145.0,16.529]
[1728359467488,6.8947,145.04,145.0,23.4254]
[1728359468615,6.8952,145.03,145.0,16.529]
[1728359470219,6.8957,145.02,144.99,6.4722]
[1728359472395,6.8957,145.02,144.98,6.8973]
[1728359472602,6.8961,145.01,144.97,6.8978]
[1728359475814,17.2357,145.05,144.97,6.8978]
[1728359476025,6.8957,145.02,144.97,6.8978]
[1728359482524,6.8961,145.01,144.97,6.8978]
[1728359484228,6.8961,145.01,144.98,1.37927245]
[1728359488535,6.8961,145.01,144.97,6.8978]
[1728359490435,6.8966,145.0,144.96,40.583]
[1728359490615,6.8966,145.0,144.96,17.2452]
[1728359490940,32.5275,145.05,144.94,6.8992]
[1728359490941,6.8975,144.98,144.94,6.8992]
[1728359491224,6.8975,144.98,144.93,24.149]
[1728359492228,6.8981,144.97,144.93,24.149]
[1728359493240,0.25098,144.99,144.92,7.16842908]
[1728359493413,6.8994,144.94,144.9,24.1535]
[1728359495341,6.9007,144.92,144.87,24.1589]
[1728359496831,6.9008,144.91,144.87,24.1589]
[1728359497235,6.9008,144.91,144.87,17.2563]
[1728359497536,6.9008,144.91,144.86,6.9031]
[1728359497537,6.9013,144.9,144.85,6.9035]
[1728359501042,6.9018,144.89,144.85,6.9035]
[1728359502142,6.9018,144.89,144.84,24.43047553]
[1728359502359,0.12549,144.94,144.84,24.43047553]
[1728359502360,6.9024,144.88,144.84,17.2601]
[1728359505824,6.9024,144.88,144.84,24.1642]
[1728359508538,6.9028,144.87,144.83,6.9045]
[1728359509243,6.9028,144.87,144.82,6.905]
[1728359510143,6.9028,144.87,144.83,6.9045]
[1728359512244,6.904,144.85,144.81,17.2634]
[1728359512446,17.2552,144.89,144.81,17.2634]
[1728359512939,6.9033,144.86,144.82,6.9048]
[1728359513143,6.9033,144.86,144.81,17.2634]
[1728359513327,6.9033,144.86,144.82,6.905]
[1728359514323,17.2552,144.89,144.82,6.905]
[1728359514524,6.9028,144.87,144.82,6.905]
[1728359517147,6.9024,144.88,144.83,1.38072542]
[1728359517348,6.9024,144.88,144.84,6.9041]
[1728359517558,6.9024,144.88,144.83,18.64172542]
[1728359517559,23.0324,144.9,144.85,6.9033]
[1728359517842,23.032,144.9,144.86,1.38062731]
[1728359518058,16.1307,144.9,144.87,6.9027]
[1728359519030,16.1307,144.9,144.86,6.903]
[1728359519532,16.1307,144.9,144.87,6.9026]
[1728359520456,16.1307,144.9,144.86,6.9031]
[1728359520630,23.032,144.9,144.86,6.9031]
[1728359522551,6.9021,144.89,144.85,24.1623]
[1728359522853,6.9021,144.89,144.85,17.2587]
[1728359523646,6.9021,144.89,144.85,25.54285846]
[1728359523860,16.1307,144.9,144.85,18.63925846]
[1728359524438,16.1307,144.9,144.87,6.9024]
[1728359524645,16.1307,144.9,144.87,8.28270729]
[1728359525154,16.1307,144.9,144.87,6.9024]
[1728359526951,16.1307,144.9,144.85,17.2587]
[1728359527150,23.032,144.9,144.86,6.9031]
[1728359531040,6.9018,144.89,144.85,24.1622]
[1728359531439,6.9018,144.89,144.85,25.54268986]
[1728359531649,16.1307,144.9,144.85,18.63918986]
[1728359531835,23.032,144.9,144.86,6.9031]
[1728359532735,6.9018,144.89,144.85,24.162]
[1728359533499,6.9023,144.88,144.84,6.904]
[1728359535266,16.1307,144.9,144.82,24.1671]
[1728359536240,6.9028,144.87,144.82,24.1671]
[1728359537158,6.9024,144.88,144.82,18.64287938]
[1728359537365,6.9024,144.88,144.84,6.9041]
[1728359537559,16.1307,144.9,144.85,6.9032]
[1728359537764,16.1307,144.9,144.84,25.54420971]
[1728359537765,6.9019,144.89,144.84,25.54420971]
[1728359538671,6.9019,144.89,144.85,6.9036]
[1728359538841,6.9024,144.88,144.84,17.2596]
[1728359540066,6.9024,144.88,144.84,18.6402329]
[1728359540269,6.9024,144.88,144.84,17.2596]
[1728359542576,6.9028,144.87,144.84,17.2596]
[1728359542772,6.9028,144.87,144.83,6.9045]
[1728359549650,6.9025,144.88,144.84,1.38071812]
[1728359549871,6.9025,144.88,144.84,6.9038]
[1728359550077,6.9025,144.88,144.84,8.284416]
[1728359551576,16.1307,144.9,144.85,1.3806243]
[1728359551778,23.0321,144.9,144.86,6.9032]
[1728359551980,16.1307,144.9,144.85,24.1622]
[1728359552181,6.9018,144.89,144.85,24.1622]
[1728359552481,6.9018,144.89,144.86,1.38048335]
[1728359552981,6.9018,144.89,144.85,24.1622]
[1728359553284,6.9018,144.89,144.86,1.38047161]
[1728359553760,6.9018,144.89,144.85,24.1622]
[1728359554160,6.9018,144.89,144.86,1.38048669]
[1728359555383,23.0321,144.9,144.86,1.38048669]
[1728359555792,6.9019,144.89,144.85,24.1622]
[1728359556080,16.1307,144.9,144.82,17.2623]
[1728359556284,6.9028,144.87,144.83,6.9046]
[1728359558784,6.9024,144.88,144.83,6.9046]
[1728359559082,6.9024,144.88,144.84,1.38056356]
[1728359559471,6.9024,144.88,144.83,6.9046]
[1728359561482,6.9024,144.88,144.82,17.2623]
[1728359561667,6.9024,144.88,144.84,6.9041]
[1728359564185,6.9024,144.88,144.85,1.38055202]
[1728359570194,16.1307,144.9,144.85,8.28415202]
[1728359570395,23.0323,144.9,144.86,6.903]
[1728359570872,16.1307,144.9,144.84,17.2601]
[1728359571073,6.9017,144.89,144.85,6.9035]
[1728359572001,6.9017,144.89,144.84,17.2601]
[1728359572179,6.9017,144.89,144.84,24.1641]
[1728359577498,16.1307,144.9,144.84,24.1641]
[1728359577699,6.9023,144.88,144.84,24.1641]
[1728359579798,6.9023,144.88,144.85,1.38056704]
[1728359581500,6.9023,144.88,144.84,24.1641]
[1728359581801,6.9023,144.88,144.85,1.38052965]
[1728359581989,6.9023,144.88,144.84,24.1641]
[1728359582688,6.9028,144.87,144.84,17.2601]
[1728359583604,6.9024,144.88,144.84,17.2601]
[1728359588003,6.9024,144.88,144.84,18.64065664]
[1728359589407,6.9024,144.88,144.84,25.54465664]
[1728359589711,6.9019,144.89,144.85,6.9036]
[1728359589911,6.9019,144.89,144.86,1.38047779]
[1728359590113,6.9019,144.89,144.85,8.28407994]
[1728359590313,6.9019,144.89,144.85,6.9036]
[1728359590739,6.9019,144.89,144.85,8.28408957]
[1728359593713,16.1307,144.9,144.87,6.9027]
[1728359593890,16.1307,144.9,144.86,6.903]
[1728359594090,16.1307,144.9,144.85,6.9036]
[1728359594309,6.902,144.89,144.85,6.9036]
[1728359595312,6.902,144.89,144.85,8.28408822]
[1728359595514,6.902,144.89,144.85,6.9036]
[1728359596198,6.902,144.89,144.86,1.38040933]
[1728359596516,23.0323,144.9,144.86,1.38040933]
[1728359596690,23.0323,144.9,144.86,8.28350933]
[1728359597527,23.0323,144.9,144.86,6.9031]
[1728359598912,23.0323,144.9,144.87,1.38032577]
[1728359599995,16.1307,144.9,144.88,6.9022]
[1728359600196,16.1307,144.9,144.88,8.28241]
[1728359600995,6.9004,144.92,144.88,6.9022]
[1728359604120,6.9004,144.92,144.89,1.38008773]
[1728359604326,6.9,144.93,144.89,8.28158773]
[1728359605217,22.0242,144.94,144.89,8.28158773]
[1728359605413,22.0242,144.94,144.89,6.9015]
[1728359606132,6.8999,144.93,144.89,6.9015]
[1728359611631,6.9004,144.92,144.88,24.1569]
[1728359616723,6.9004,144.92,144.89,1.38005072]
[1728359617629,6.9004,144.92,144.88,24.1569]
[1728359619625,15.1247,144.94,144.81,84.526]
[1728359619825,15.1247,144.94,144.84,17.2595]
[1728359619826,24.027864,144.93,144.84,17.2595]
[1728359620035,6.9027,144.87,144.83,6.9045]
[1728359628138,6.9027,144.87,144.84,1.3805619]
[1728359628833,6.9027,144.87,144.83,6.9045]
[1728359629823,24.027864,144.89,144.78,51.7999]
[1728359630136,6.9044,144.84,144.79,6.9064]
[1728359630635,24.027864,144.89,144.78,58.9784018]
[1728359630636,16.56,144.9,144.8,1.38088285]
[1728359630816,6.9037,144.85,144.81,6.9055]
[1728359631014,6.9037,144.85,144.82,1.38070295]
[1728359631432,6.9037,144.85,144.81,6.9055]
[1728359631743,6.9037,144.85,144.82,1.38070291]
[1728359632136,6.9037,144.85,144.81,6.9055]
[1728359633719,6.9037,144.85,144.82,1.38070564]
[1728359634035,6.9037,144.85,144.81,6.9055]
[1728359634235,16.56,144.9,144.81,6.9055]
[1728359634436,6.9032,144.86,144.81,6.9055]
[1728359636524,6.9032,144.86,144.82,1.3806474]
[1728359636725,6.9032,144.86,144.81,6.9055]
[1728359640846,6.9032,144.86,144.82,1.38063269]
[1728359641658,6.9028,144.87,144.83,6.9046]
[1728359641843,6.9028,144.87,144.84,1.38054239]
[1728359643454,6.9028,144.87,144.83,6.9046]
[1728359643455,6.9032,144.86,144.82,24.1675]
[1728359645661,16.56,144.9,144.82,17.2625]
[1728359645852,6.9036,144.85,144.81,6.9054]
[1728359648769,6.9038,144.85,144.81,6.9055]
[1728359652465,6.9038,144.85,144.79,24.44276255]
[1728359652667,6.9042,144.84,144.8,6.9059]
[1728359655166,6.9042,144.84,144.81,1.38078396]
[1728359657351,6.9042,144.84,144.8,6.9059]
[1728359658567,6.9042,144.84,144.81,1.38078263]
[1728359659180,6.9042,144.84,144.79,24.1717]
[1728359659482,6.9046,144.83,144.79,24.1717]
[1728359664093,6.9046,144.83,144.79,17.2654]
[1728359664378,6.9046,144.83,144.8,1.3810465]
[1728359666576,6.9046,144.83,144.79,24.1719]
[1728359669357,6.9046,144.83,144.79,17.2654]
[1728359672490,22.1372,144.82,144.79,17.2654]
[1728359673801,22.1372,144.82,144.78,6.907]
[1728359676294,22.1372,144.82,144.79,1.38106665]
[1728359676472,15.232,144.82,144.79,1.38106665]
[1728359676659,15.232,144.82,144.79,8.28746665]
[1728359679085,15.232,144.82,144.79,1.38106665]